[Event "*** SCC Grand Prix: Titled Tuesday Blitz"]
[Site "Chess.com"]
[Date "2020.08.25"]
[Round "4"]
[White "Meri-Arabidze"]
[Black "allvim"]
[Result "1-0"]
[WhiteElo "2603"]
[BlackElo "2416"]
[TimeControl "180+1"]
[EndTime "10:41:59 PDT"]
[Termination "Meri-Arabidze won on time"]

1. d4 {[%clk 0:03:00.9]} 1... Nf6 {[%clk 0:02:57.7]} 2. c4 {[%clk 0:03:01.4]}
2... g6 {[%clk 0:02:56.1]} 3. Nf3 {[%clk 0:03:02.3]} 3... d5 {[%clk 0:02:56.1]}
4. g3 {[%clk 0:03:03.2]} 4... dxc4 {[%clk 0:02:55]} 5. Bg2 {[%clk 0:03:02.7]}
5... Bg7 {[%clk 0:02:53.3]} 6. O-O {[%clk 0:03:02.8]} 6... O-O {[%clk
0:02:53.6]} 7. Na3 {[%clk 0:03:03.1]} 7... Bd7 {[%clk 0:02:48.2]} 8. Nxc4 {[%clk
0:03:02.3]} 8... Bc6 {[%clk 0:02:42]} 9. Nce5 {[%clk 0:03:01.8]} 9... Bd5 {[%clk
0:02:40.1]} 10. Bf4 {[%clk 0:03:01.7]} 10... Nbd7 {[%clk 0:02:38.1]} 11. Rc1
{[%clk 0:02:57.5]} 11... Nxe5 {[%clk 0:02:35]} 12. Bxe5 {[%clk 0:02:49.9]} 12...
c6 {[%clk 0:02:30.7]} 13. Qa4 {[%clk 0:02:48.6]} 13... Nd7 {[%clk 0:01:55.9]}
14. Bxg7 {[%clk 0:02:47.6]} 14... Kxg7 {[%clk 0:01:56.2]} 15. Rfe1 {[%clk
0:02:45.5]} 15... Nf6 {[%clk 0:01:56]} 16. Qa3 {[%clk 0:02:39.5]} 16... Qd6
{[%clk 0:01:50.9]} 17. Qxd6 {[%clk 0:02:28.8]} 17... exd6 {[%clk 0:01:51.8]} 18.
Nd2 {[%clk 0:02:29.2]} 18... Bxg2 {[%clk 0:01:50.8]} 19. Kxg2 {[%clk 0:02:30.1]}
19... d5 {[%clk 0:01:47.4]} 20. Nb3 {[%clk 0:02:29.8]} 20... Rfe8 {[%clk
0:01:42.8]} 21. Nc5 {[%clk 0:02:28.4]} 21... Ne4 {[%clk 0:01:39.9]} 22. e3
{[%clk 0:02:09.6]} 22... Nd6 {[%clk 0:01:24.6]} 23. Rc2 {[%clk 0:02:03.6]} 23...
Rac8 {[%clk 0:01:16.4]} 24. Rec1 {[%clk 0:02:03.3]} 24... Re7 {[%clk 0:00:42.5]}
25. a4 {[%clk 0:02:02.1]} 25... Rec7 {[%clk 0:00:40.2]} 26. a5 {[%clk
0:01:58.3]} 26... Nc4 {[%clk 0:00:37.6]} 27. a6 {[%clk 0:01:47.5]} 27... bxa6
{[%clk 0:00:29.7]} 28. b3 {[%clk 0:01:35.2]} 28... Na3 {[%clk 0:00:30]} 29. Ra2
{[%clk 0:01:34.4]} 29... Nb5 {[%clk 0:00:27.4]} 30. Rxa6 {[%clk 0:01:34.5]}
30... Rb8 {[%clk 0:00:22.5]} 31. Na4 {[%clk 0:01:12.5]} 31... Nd6 {[%clk
0:00:19.1]} 32. Rcxc6 {[%clk 0:01:05.9]} 32... Rxc6 {[%clk 0:00:20]} 33. Rxc6
{[%clk 0:01:06.5]} 33... Ne4 {[%clk 0:00:20.4]} 34. Nc5 {[%clk 0:00:56.8]} 34...
Nxc5 {[%clk 0:00:06.4]} 35. Rxc5 {[%clk 0:00:57.7]} 35... Rxb3 {[%clk
0:00:06.9]} 36. Rxd5 {[%clk 0:00:57.8]} 36... Ra3 {[%clk 0:00:07]} 37. Rd7
{[%clk 0:00:57.2]} 37... h5 {[%clk 0:00:07.3]} 38. h3 {[%clk 0:00:53.1]} 38...
Ra1 {[%clk 0:00:07.7]} 39. Kf3 {[%clk 0:00:52.7]} 39... a5 {[%clk 0:00:08]} 40.
Ra7 {[%clk 0:00:52.2]} 40... Kf6 {[%clk 0:00:08.3]} 41. Ra6+ {[%clk 0:00:51.3]}
41... Ke7 {[%clk 0:00:08.4]} 42. Ke4 {[%clk 0:00:49.9]} 42... a4 {[%clk
0:00:08.8]} 43. g4 {[%clk 0:00:45.6]} 43... hxg4 {[%clk 0:00:08.8]} 44. hxg4
{[%clk 0:00:45.9]} 44... a3 {[%clk 0:00:09.7]} 45. f3 {[%clk 0:00:45.5]} 45...
a2 {[%clk 0:00:09.5]} 46. g5 {[%clk 0:00:45.8]} 46... Kd7 {[%clk 0:00:07.8]} 47.
f4 {[%clk 0:00:45.9]} 47... Ke7 {[%clk 0:00:07.9]} 48. Ra7+ {[%clk 0:00:45]}
48... Ke8 {[%clk 0:00:07.1]} 49. Kd5 {[%clk 0:00:41.7]} 49... Re1 {[%clk
0:00:06.5]} 50. Rxa2 {[%clk 0:00:40.2]} 50... Rxe3 {[%clk 0:00:06.8]} 51. Ra8+
{[%clk 0:00:38]} 51... Ke7 {[%clk 0:00:07]} 52. Ra7+ {[%clk 0:00:38.6]} 52...
Ke8 {[%clk 0:00:07.5]} 53. Kc6 {[%clk 0:00:29.4]} 53... Re4 {[%clk 0:00:06.9]}
54. d5 {[%clk 0:00:27.7]} 54... Rxf4 {[%clk 0:00:06.7]} 55. Ra8+ {[%clk
0:00:27.6]} 55... Ke7 {[%clk 0:00:06.6]} 56. d6+ {[%clk 0:00:28.5]} 56... Ke6
{[%clk 0:00:07.2]} 57. Re8+ {[%clk 0:00:27.9]} 57... Kf5 {[%clk 0:00:07.1]} 58.
d7 {[%clk 0:00:28.3]} 58... Rd4 {[%clk 0:00:06.7]} 59. d8=Q {[%clk 0:00:26.7]}
59... Rxd8 {[%clk 0:00:07.2]} 60. Rxd8 {[%clk 0:00:27.6]} 60... Kxg5 {[%clk
0:00:08.1]} 61. Kd5 {[%clk 0:00:27.9]} 61... f5 {[%clk 0:00:09]} 62. Ke5 {[%clk
0:00:25.3]} 62... Kg4 {[%clk 0:00:08.8]} 63. Rd4+ {[%clk 0:00:25]} 63... Kg3
{[%clk 0:00:08.4]} 64. Ra4 {[%clk 0:00:22.6]} 64... Kf3 {[%clk 0:00:08.1]} 65.
Kf6 {[%clk 0:00:22.3]} 65... f4 {[%clk 0:00:04.2]} 66. Kg5 {[%clk 0:00:22.1]}
1-0

[Event "*** SCC Grand Prix: Titled Tuesday Blitz"]
[Site "Chess.com"]
[Date "2020.08.25"]
[Round "4"]
[White "shnitez"]
[Black "GodDMuhammad"]
[Result "1-0"]
[WhiteElo "2454"]
[BlackElo "2285"]
[TimeControl "180+1"]
[EndTime "10:42:07 PDT"]
[Termination "shnitez won by checkmate"]

1. d4 {[%clk 0:03:00.9]} 1... f5 {[%clk 0:02:55]} 2. h3 {[%clk 0:02:55.1]} 2...
Nf6 {[%clk 0:02:50.3]} 3. g4 {[%clk 0:02:54.4]} 3... fxg4 {[%clk 0:02:49.2]} 4.
hxg4 {[%clk 0:02:55.3]} 4... Nxg4 {[%clk 0:02:49.2]} 5. e4 {[%clk 0:02:55]} 5...
Nf6 {[%clk 0:02:49]} 6. e5 {[%clk 0:02:54.4]} 6... Ng8 {[%clk 0:02:41.4]} 7. Bd3
{[%clk 0:02:51]} 7... d5 {[%clk 0:02:34.8]} 8. Rxh7 {[%clk 0:02:15.1]} 8... Rxh7
{[%clk 0:02:30.5]} 9. Bxh7 {[%clk 0:02:16]} 9... Nh6 {[%clk 0:02:28.4]} 10. Bxh6
{[%clk 0:02:11.1]} 10... gxh6 {[%clk 0:02:26.4]} 11. Qh5+ {[%clk 0:01:27.1]}
11... Kd7 {[%clk 0:02:26.1]} 12. e6+ {[%clk 0:01:22.5]} 12... Kc6 {[%clk
0:02:23.4]} 13. Nf3 {[%clk 0:01:14.9]} 13... Bxe6 {[%clk 0:02:19.2]} 14. c4
{[%clk 0:01:10.6]} 14... b6 {[%clk 0:01:58.2]} 15. Nc3 {[%clk 0:01:10.3]} 15...
Kb7 {[%clk 0:01:48.6]} 16. cxd5 {[%clk 0:01:08.1]} 16... Bd7 {[%clk 0:01:32.4]}
17. O-O-O {[%clk 0:00:55.1]} 17... a6 {[%clk 0:01:22.3]} 18. Ne5 {[%clk
0:00:53.8]} 18... Ka7 {[%clk 0:01:15.8]} 19. Kb1 {[%clk 0:00:41]} 19... Qe8
{[%clk 0:01:15.6]} 20. Bg6 {[%clk 0:00:39.8]} 20... Qc8 {[%clk 0:01:09.5]} 21.
Rc1 {[%clk 0:00:37.7]} 21... Bg7 {[%clk 0:01:04.2]} 22. Ka1 {[%clk 0:00:36]}
22... Qb7 {[%clk 0:00:30.5]} 23. Be4 {[%clk 0:00:34.6]} 23... c6 {[%clk
0:00:26.1]} 24. Nxd7 {[%clk 0:00:29.9]} 24... Qxd7 {[%clk 0:00:25.7]} 25. dxc6
{[%clk 0:00:29.7]} 25... Nxc6 {[%clk 0:00:25.4]} 26. Nb5+ {[%clk 0:00:19.5]}
26... axb5 {[%clk 0:00:19.9]} 27. Qxb5 {[%clk 0:00:20.4]} 27... Rc8 {[%clk
0:00:17.5]} 28. Bxc6 {[%clk 0:00:18.7]} 28... Qxd4 {[%clk 0:00:16.5]} 29. Kb1
{[%clk 0:00:15.8]} 29... Rc7 {[%clk 0:00:15.6]} 30. f3 {[%clk 0:00:15.2]} 30...
Kb8 {[%clk 0:00:15.1]} 31. a3 {[%clk 0:00:14.6]} 31... e6 {[%clk 0:00:13.4]} 32.
Rc4 {[%clk 0:00:14.4]} 32... Qd1+ {[%clk 0:00:12.8]} 33. Ka2 {[%clk 0:00:13.9]}
33... Kc8 {[%clk 0:00:13]} 34. Qxb6 {[%clk 0:00:13.5]} 34... Kd8 {[%clk
0:00:13.2]} 35. Qb8+ {[%clk 0:00:13.6]} 35... Rc8 {[%clk 0:00:13.5]} 36. Qb6+
{[%clk 0:00:12.6]} 36... Ke7 {[%clk 0:00:13.4]} 37. Qc5+ {[%clk 0:00:12.6]}
37... Kf7 {[%clk 0:00:13.3]} 38. Qb4 {[%clk 0:00:09.5]} 38... Rxc6 {[%clk
0:00:12]} 39. Rxc6 {[%clk 0:00:08.3]} 39... Qd5+ {[%clk 0:00:12.9]} 40. Qc4
{[%clk 0:00:08.4]} 40... Qxc4+ {[%clk 0:00:13.2]} 41. Rxc4 {[%clk 0:00:08.4]}
41... h5 {[%clk 0:00:14.1]} 42. a4 {[%clk 0:00:08.3]} 42... Be5 {[%clk
0:00:13.7]} 43. a5 {[%clk 0:00:06.7]} 43... Bg3 {[%clk 0:00:14.6]} 44. a6 {[%clk
0:00:06.2]} 44... Bf2 {[%clk 0:00:15.5]} 45. Rh4 {[%clk 0:00:05.1]} 45... Bxh4
{[%clk 0:00:13.8]} 46. a7 {[%clk 0:00:04.8]} 46... Bg3 {[%clk 0:00:14.7]} 47.
a8=Q {[%clk 0:00:05.7]} 47... h4 {[%clk 0:00:15.4]} 48. Qh8 {[%clk 0:00:04.7]}
48... Kg6 {[%clk 0:00:15.3]} 49. Qg8+ {[%clk 0:00:03.1]} 49... Kf5 {[%clk
0:00:16.2]} 50. Qg4+ {[%clk 0:00:03.3]} 50... Kf6 {[%clk 0:00:16]} 51. b4 {[%clk
0:00:03.6]} 51... Ke7 {[%clk 0:00:15.5]} 52. Kb3 {[%clk 0:00:04.5]} 52... Kd6
{[%clk 0:00:16.4]} 53. Kc4 {[%clk 0:00:04.9]} 53... Bf2 {[%clk 0:00:15.9]} 54.
Kd3 {[%clk 0:00:04.9]} 54... Kc6 {[%clk 0:00:15.7]} 55. Ke2 {[%clk 0:00:04.6]}
55... Bg3 {[%clk 0:00:15.3]} 56. Qxe6+ {[%clk 0:00:04.7]} 56... Kb5 {[%clk
0:00:16.2]} 57. Qg4 {[%clk 0:00:04.9]} 57... Kb6 {[%clk 0:00:16.2]} 58. Kd3
{[%clk 0:00:04.7]} 58... Kb5 {[%clk 0:00:17.1]} 59. Ke2 {[%clk 0:00:04.9]} 59...
Kb6 {[%clk 0:00:18]} 60. Kf1 {[%clk 0:00:05.3]} 60... Kb5 {[%clk 0:00:18.9]} 61.
Kg2 {[%clk 0:00:06]} 61... Ka4 {[%clk 0:00:18.7]} 62. Qe4 {[%clk 0:00:06]} 62...
Kb5 {[%clk 0:00:19.6]} 63. f4 {[%clk 0:00:06.4]} 63... Ka4 {[%clk 0:00:18.1]}
64. f5 {[%clk 0:00:06.7]} 64... Kb5 {[%clk 0:00:19]} 65. f6 {[%clk 0:00:07.1]}
65... Bd6 {[%clk 0:00:19.9]} 66. f7 {[%clk 0:00:07.3]} 66... Bxb4 {[%clk
0:00:20]} 67. Qxb4+ {[%clk 0:00:07.2]} 67... Kxb4 {[%clk 0:00:19.6]} 68. f8=Q+
{[%clk 0:00:08.1]} 68... Kc4 {[%clk 0:00:19.2]} 69. Kh3 {[%clk 0:00:09]} 69...
Kd4 {[%clk 0:00:20]} 70. Kxh4 {[%clk 0:00:09.9]} 70... Ke4 {[%clk 0:00:20.9]}
71. Kg3 {[%clk 0:00:10.8]} 71... Kd5 {[%clk 0:00:21.6]} 72. Qe7 {[%clk 0:00:11]}
72... Kd4 {[%clk 0:00:21.5]} 73. Kf4 {[%clk 0:00:11.9]} 73... Kd3 {[%clk
0:00:21.8]} 74. Qd6+ {[%clk 0:00:12]} 74... Kc3 {[%clk 0:00:22.2]} 75. Ke3
{[%clk 0:00:11.5]} 75... Kc4 {[%clk 0:00:22.5]} 76. Qc6+ {[%clk 0:00:11.9]}
76... Kb4 {[%clk 0:00:22.5]} 77. Kd3 {[%clk 0:00:12.8]} 77... Kb3 {[%clk
0:00:23]} 78. Qb5+ {[%clk 0:00:12.6]} 78... Ka3 {[%clk 0:00:22.8]} 79. Kc2
{[%clk 0:00:13.5]} 79... Ka2 {[%clk 0:00:23.3]} 80. Qa5# {[%clk 0:00:14.2]} 1-0

[Event "*** SCC Grand Prix: Titled Tuesday Blitz"]
[Site "Chess.com"]
[Date "2020.08.25"]
[Round "4"]
[White "tylityli"]
[Black "XiaoKangZhong"]
[Result "0-1"]
[WhiteElo "2193"]
[BlackElo "2415"]
[TimeControl "180+1"]
[EndTime "10:42:09 PDT"]
[Termination "XiaoKangZhong won on time"]

1. d4 {[%clk 0:03:00.9]} 1... Nf6 {[%clk 0:02:59.5]} 2. c4 {[%clk 0:03:01.8]}
2... g6 {[%clk 0:02:59.7]} 3. Nc3 {[%clk 0:03:01.2]} 3... d5 {[%clk 0:03:00.2]}
4. cxd5 {[%clk 0:03:00.9]} 4... Nxd5 {[%clk 0:03:01.1]} 5. Bd2 {[%clk
0:03:01.1]} 5... Bg7 {[%clk 0:02:48.5]} 6. e4 {[%clk 0:03:00.6]} 6... Nb6 {[%clk
0:02:48.2]} 7. Be3 {[%clk 0:02:59.7]} 7... O-O {[%clk 0:02:47.9]} 8. Bb5 {[%clk
0:02:55.9]} 8... a6 {[%clk 0:02:35.4]} 9. Be2 {[%clk 0:02:55.4]} 9... Nc6 {[%clk
0:02:35.2]} 10. Nf3 {[%clk 0:02:54.8]} 10... Bg4 {[%clk 0:02:30.6]} 11. d5
{[%clk 0:02:53.6]} 11... Na5 {[%clk 0:02:30.1]} 12. Bd4 {[%clk 0:02:51.8]} 12...
Bxf3 {[%clk 0:02:20.8]} 13. gxf3 {[%clk 0:02:50.2]} 13... e5 {[%clk 0:02:18.3]}
14. Bc5 {[%clk 0:02:45.7]} 14... Re8 {[%clk 0:02:18.3]} 15. b3 {[%clk
0:02:45.5]} 15... Nd7 {[%clk 0:02:13.6]} 16. Be3 {[%clk 0:02:43.1]} 16... c5
{[%clk 0:02:11.2]} 17. O-O {[%clk 0:02:37.1]} 17... b5 {[%clk 0:02:07.3]} 18.
Kh1 {[%clk 0:02:34.6]} 18... Nb7 {[%clk 0:02:07.1]} 19. a4 {[%clk 0:02:20.5]}
19... b4 {[%clk 0:02:02.7]} 20. Nb1 {[%clk 0:02:20.6]} 20... Nd6 {[%clk
0:02:02.5]} 21. Nd2 {[%clk 0:02:20.6]} 21... f5 {[%clk 0:01:59.1]} 22. Nc4
{[%clk 0:02:17.4]} 22... Qc7 {[%clk 0:01:48.5]} 23. Nxd6 {[%clk 0:02:03.1]}
23... Qxd6 {[%clk 0:01:47.7]} 24. a5 {[%clk 0:02:01.4]} 24... Bf8 {[%clk
0:01:33.3]} 25. Bc4 {[%clk 0:01:59]} 25... Kg7 {[%clk 0:01:30.9]} 26. Rg1 {[%clk
0:01:56.2]} 26... f4 {[%clk 0:01:25.2]} 27. Bd2 {[%clk 0:01:55.8]} 27... Qf6
{[%clk 0:01:22.6]} 28. Qe2 {[%clk 0:01:53.4]} 28... Ra7 {[%clk 0:01:16.1]} 29.
Qf1 {[%clk 0:01:53.2]} 29... Nb8 {[%clk 0:01:15.3]} 30. Qg2 {[%clk 0:01:50.9]}
30... Bd6 {[%clk 0:01:15.1]} 31. Qg4 {[%clk 0:01:49.5]} 31... Rf7 {[%clk
0:01:14]} 32. Kg2 {[%clk 0:01:43.6]} 32... h5 {[%clk 0:01:12.3]} 33. Qh3 {[%clk
0:01:43.1]} 33... Kh6 {[%clk 0:01:12.6]} 34. Kf1 {[%clk 0:01:43]} 34... Rd8
{[%clk 0:01:08.6]} 35. Ke2 {[%clk 0:01:41.9]} 35... Be7 {[%clk 0:01:08.5]} 36.
Qg2 {[%clk 0:01:36.2]} 36... Bd6 {[%clk 0:01:02.1]} 37. Qh3 {[%clk 0:01:35.8]}
37... g5 {[%clk 0:01:01.5]} 38. Qe6 {[%clk 0:01:28.1]} 38... Qxe6 {[%clk
0:00:51.4]} 39. dxe6 {[%clk 0:01:29]} 39... Ra7 {[%clk 0:00:50.8]} 40. Bd5
{[%clk 0:01:26.8]} 40... Rc8 {[%clk 0:00:45.9]} 41. Rac1 {[%clk 0:01:22.2]}
41... Rac7 {[%clk 0:00:43.6]} 42. h4 {[%clk 0:01:15]} 42... Be7 {[%clk
0:00:41.2]} 43. hxg5+ {[%clk 0:01:14.3]} 43... Bxg5 {[%clk 0:00:41.4]} 44. Rg2
{[%clk 0:01:05.1]} 44... Nc6 {[%clk 0:00:39.3]} 45. Bxc6 {[%clk 0:00:50.2]}
45... Rxc6 {[%clk 0:00:39.2]} 46. Rcg1 {[%clk 0:00:50.5]} 46... Rg8 {[%clk
0:00:37.5]} 47. e7 {[%clk 0:00:49.7]} 47... Rcg6 {[%clk 0:00:28]} 48. e8=Q
{[%clk 0:00:42.7]} 48... Rxe8 {[%clk 0:00:27.7]} 49. Bc1 {[%clk 0:00:43.5]}
49... Rd8 {[%clk 0:00:24.6]} 50. Bb2 {[%clk 0:00:43.2]} 50... Re8 {[%clk
0:00:19]} 51. Kd3 {[%clk 0:00:33.9]} 51... Rd8+ {[%clk 0:00:16.9]} 52. Ke2
{[%clk 0:00:30.7]} 52... Re8 {[%clk 0:00:15.4]} 53. Kd3 {[%clk 0:00:30.8]} 53...
Rd6+ {[%clk 0:00:12.7]} 54. Ke2 {[%clk 0:00:27.9]} 54... Bh4 {[%clk 0:00:08.9]}
55. Rh2 {[%clk 0:00:25.5]} 55... Bf6 {[%clk 0:00:08.1]} 56. Rhg2 {[%clk
0:00:24.8]} 56... Bh8 {[%clk 0:00:08]} 57. Rg8 {[%clk 0:00:15.9]} 57... Red8
{[%clk 0:00:07.7]} 58. Rxd8 {[%clk 0:00:10.6]} 58... Rxd8 {[%clk 0:00:07.7]} 59.
Rc1 {[%clk 0:00:11.5]} 59... Rc8 {[%clk 0:00:06.7]} 60. Kf1 {[%clk 0:00:09.4]}
60... Bf6 {[%clk 0:00:06.4]} 61. Kg2 {[%clk 0:00:09.4]} 61... Kg6 {[%clk
0:00:06]} 62. Kh3 {[%clk 0:00:08.9]} 62... Kf7 {[%clk 0:00:05.6]} 63. Rd1 {[%clk
0:00:07.2]} 63... c4 {[%clk 0:00:05.2]} 64. Rd7+ {[%clk 0:00:03.3]} 64... Ke6
{[%clk 0:00:05.1]} 65. Ra7 {[%clk 0:00:02.6]} 65... c3 {[%clk 0:00:03.9]} 66.
Bc1 {[%clk 0:00:02.4]} 66... Rd8 {[%clk 0:00:03.9]} 0-1

[Event "*** SCC Grand Prix: Titled Tuesday Blitz"]
[Site "Chess.com"]
[Date "2020.08.25"]
[Round "4"]
[White "j2806"]
[Black "Speshka"]
[Result "0-1"]
[WhiteElo "2035"]
[BlackElo "2231"]
[TimeControl "180+1"]
[EndTime "10:42:10 PDT"]
[Termination "Speshka won by resignation"]

1. e4 {[%clk 0:03:00.9]} 1... c5 {[%clk 0:02:57.3]} 2. Nf3 {[%clk 0:03:00.3]}
2... e6 {[%clk 0:02:56.3]} 3. d4 {[%clk 0:03:00.5]} 3... cxd4 {[%clk 0:02:56]}
4. Nxd4 {[%clk 0:02:49.6]} 4... Nc6 {[%clk 0:02:55.3]} 5. Nc3 {[%clk 0:02:48.7]}
5... Nf6 {[%clk 0:02:54.2]} 6. Be3 {[%clk 0:02:46.2]} 6... Bb4 {[%clk
0:02:52.4]} 7. Qd3 {[%clk 0:02:41.5]} 7... Qa5 {[%clk 0:02:41.4]} 8. Bd2 {[%clk
0:02:33.1]} 8... Ne5 {[%clk 0:02:35.7]} 9. Qe2 {[%clk 0:02:28.1]} 9... O-O
{[%clk 0:02:24.7]} 10. Nb3 {[%clk 0:02:21.2]} 10... Qc7 {[%clk 0:02:16.5]} 11.
O-O-O {[%clk 0:02:20.6]} 11... a5 {[%clk 0:02:11]} 12. Kb1 {[%clk 0:02:17.9]}
12... Be7 {[%clk 0:01:56.7]} 13. h3 {[%clk 0:02:06.2]} 13... b6 {[%clk
0:01:52.5]} 14. f4 {[%clk 0:02:05.7]} 14... Ba6 {[%clk 0:01:19.7]} 15. Qf2
{[%clk 0:01:29.8]} 15... Nc4 {[%clk 0:01:17.4]} 16. Bc1 {[%clk 0:01:21]} 16...
Bb4 {[%clk 0:00:59.9]} 17. Qf3 {[%clk 0:00:50.4]} 17... Na3+ {[%clk 0:00:41.7]}
18. bxa3 {[%clk 0:00:38.2]} 18... Bxc3 {[%clk 0:00:40.7]} 19. Bxa6 {[%clk
0:00:33.8]} 19... Rxa6 {[%clk 0:00:39.7]} 20. Bb2 {[%clk 0:00:34.3]} 20... Bxb2
{[%clk 0:00:38.5]} 21. Kxb2 {[%clk 0:00:34.4]} 21... Rc8 {[%clk 0:00:35.8]} 22.
Rc1 {[%clk 0:00:34]} 22... a4 {[%clk 0:00:32.8]} 23. Nd4 {[%clk 0:00:32.1]}
23... Qc4 {[%clk 0:00:30.7]} 24. Qd3 {[%clk 0:00:29]} 24... Ra5 {[%clk 0:00:28]}
25. Qxc4 {[%clk 0:00:26.9]} 25... Rxc4 {[%clk 0:00:27.2]} 26. e5 {[%clk
0:00:26.7]} 26... Rxd4 {[%clk 0:00:25.9]} 27. exf6 {[%clk 0:00:26.4]} 27... Rxf4
{[%clk 0:00:25.4]} 28. Rhd1 {[%clk 0:00:27.3]} 28... d5 {[%clk 0:00:23.9]} 29.
fxg7 {[%clk 0:00:26.7]} 29... Kxg7 {[%clk 0:00:23.4]} 30. c4 {[%clk 0:00:27.6]}
30... dxc4 {[%clk 0:00:21.5]} 31. Rc2 {[%clk 0:00:26.9]} 31... Rb5+ {[%clk
0:00:20.9]} 32. Ka1 {[%clk 0:00:26.3]} 32... Rd5 {[%clk 0:00:20.4]} 33. Rdc1
{[%clk 0:00:26.7]} 33... Rdd4 {[%clk 0:00:20]} 34. Rc3 {[%clk 0:00:26.8]} 34...
b5 {[%clk 0:00:19.8]} 35. Rg3+ {[%clk 0:00:27]} 35... Kf6 {[%clk 0:00:19]} 36.
Rgc3 {[%clk 0:00:27.9]} 36... Rd3 {[%clk 0:00:18.8]} 37. R3c2 {[%clk 0:00:27.8]}
37... Rxa3 {[%clk 0:00:18.1]} 38. Rb1 {[%clk 0:00:27.7]} 38... Rf5 {[%clk
0:00:11.4]} 39. Rcb2 {[%clk 0:00:26.9]} 39... Rg3 {[%clk 0:00:09.6]} 40. Rxb5
{[%clk 0:00:25.7]} 40... Rxb5 {[%clk 0:00:10.5]} 41. Rxb5 {[%clk 0:00:25.8]}
41... Rxg2 {[%clk 0:00:11.2]} 42. Rb1 {[%clk 0:00:25.3]} 42... c3 {[%clk
0:00:10.8]} 43. Rc1 {[%clk 0:00:25.8]} 43... c2 {[%clk 0:00:08.9]} 44. Kb2
{[%clk 0:00:26.1]} 44... Ke5 {[%clk 0:00:09.1]} 45. Rxc2 {[%clk 0:00:26.4]}
45... Rf2 {[%clk 0:00:09]} 46. Rxf2 {[%clk 0:00:26.1]} 46... f5 {[%clk
0:00:09.1]} 47. Rc2 {[%clk 0:00:25.9]} 47... f4 {[%clk 0:00:08.8]} 48. Ka3
{[%clk 0:00:26.5]} 48... f3 {[%clk 0:00:08.4]} 49. Kxa4 {[%clk 0:00:26.7]} 49...
Kf4 {[%clk 0:00:07.7]} 50. Kb5 {[%clk 0:00:27.1]} 50... e5 {[%clk 0:00:07.6]}
51. a4 {[%clk 0:00:27.6]} 51... e4 {[%clk 0:00:07.8]} 52. a5 {[%clk 0:00:28.1]}
52... e3 {[%clk 0:00:08.1]} 53. a6 {[%clk 0:00:27.4]} 53... f2 {[%clk
0:00:08.2]} 54. Rc1 {[%clk 0:00:25]} 54... e2 {[%clk 0:00:08]} 55. a7 {[%clk
0:00:23.2]} 55... f1=Q {[%clk 0:00:06.6]} 56. a8=Q {[%clk 0:00:21]} 56... Qxc1
{[%clk 0:00:04.2]} 57. Qf8+ {[%clk 0:00:21.9]} 57... Kg3 {[%clk 0:00:03.5]} 58.
Qg7+ {[%clk 0:00:21.9]} 58... Kf2 {[%clk 0:00:02.6]} 59. Qf6+ {[%clk 0:00:21.8]}
59... Ke1 {[%clk 0:00:03]} 60. Qh4+ {[%clk 0:00:21.6]} 60... Kd1 {[%clk
0:00:02.7]} 61. Qd4+ {[%clk 0:00:20.6]} 61... Qd2 {[%clk 0:00:02.6]} 62. Qg1+
{[%clk 0:00:20.6]} 62... e1=Q {[%clk 0:00:01.7]} 63. Qg4+ {[%clk 0:00:21]} 63...
Kc1 {[%clk 0:00:02]} 64. Qc4+ {[%clk 0:00:20.7]} 64... Qc2 {[%clk 0:00:02.9]}
65. Qxc2+ {[%clk 0:00:20.2]} 65... Kxc2 {[%clk 0:00:03.1]} 66. Kc5 {[%clk
0:00:19.9]} 66... Qe5+ {[%clk 0:00:03.8]} 67. Kc6 {[%clk 0:00:20]} 67... Qg3
{[%clk 0:00:04.6]} 68. Kd7 {[%clk 0:00:20.1]} 68... Qxh3+ {[%clk 0:00:05.5]} 69.
Ke7 {[%clk 0:00:20.5]} 0-1